[Event "Dutch Open-ch 2019"]
[Site "Dieren"]
[Date "2019.07.24"]
[Round "2.6"]
[White "Grooten, Herman"]
[Black "Beerdsen, Thomas"]
[Result "0-1"]
[ECO "E16"]
[WhiteElo "2310"]
[BlackElo "2497"]
[Annotator "ChessBase"]
[PlyCount "68"]
[EventDate "2019.07.23"]
[EventType "swiss"]
[EventCountry "NED"]
[SourceTitle "playchess.com"]
[Source "ChessBase"]
[SourceQuality "1"]
[TimeControl "40/5400+30:1800+30"]

1. d4 {[%emt 0:00:00]} Nf6 {[%emt 0:00:58]} 2. c4 {[%emt 0:00:00]} e6 {[%emt 0:00:14]} 3. Nf3 {[%emt 0:00:00]} Bb4+ {[%emt 0:00:07]} 4. Nbd2 {[%emt 0:00:00]} O-O {[%emt 0:00:09]} 5. a3 {[%emt 0:00:10]} Be7 {[%emt 0:00:06]} 6. g3 {[%emt 0:04:28]} b6 {[%emt 0:00:05]} 7. Bg2 {[%emt 0:00:12]} Bb7 {[%emt 0:00:05]} 8. Qc2 {[%emt 0:00:13]} d5 {[%emt 0:02:06]} 9. cxd5 {[%emt 0:00:56]} exd5 {[%emt 0:00:34]} 10. b4 {[%emt 0:01:06]} Nbd7 {[%emt 0:07:00]} 11. Rb1 {[%emt 0:02:57]} a5 {[%emt 0:02:33]} 12. b5 {[%emt 0:04:14]} a4 {[%emt 0:01:15]} 13. O-O {[%emt 0:00:46]} Bd6 {[%emt 0:00:28]} 14. Nh4 {[%emt 0:02:06]} Re8 {[%emt 0:03:55]} 15. Nc4 {[%emt 0:10:17]} Bf8 {[%emt 0:02:58]} 16. Bb2 {[%emt 0:03:30]} Ne4 {[%emt 0:05:43]} 17. Ne5 {[%emt 0:05:14]} Nxe5 {[%emt 0:01:23]} 18. dxe5 {[%emt 0:00:08]} Bc5 {[%emt 0:01:43]} 19. e3 {[%emt 0:06:19]} Qd7 {[%emt 0:10:37]} 20. Qd3 {[%emt 0:02:02]} Qe6 {[%emt 0:00:20]} 21. f3 {[%emt 0:02:31]} Ng5 {[%emt 0:00:54]} 22. Nf5 {[%emt 0:05:35]} Qg6 {[%emt 0:03:55]} 23. Rbd1 {[%emt 0:05:54]} c6 {[%emt 0:07:49]} 24. h4 {[%emt 0:10:44]} Ne6 {[%emt 0:00:39]} 25. f4 {[%emt 0:00:49]} cxb5 {[%emt 0:03:03]} 26. h5 {[%emt 0:02:52]} Qxh5 {[%emt 0:01:22]} 27. Bf3 {[%emt 0:00:55]} Qg6 {[%emt 0:04:09]} 28. Kh1 {[%emt 0:06:02]} b4 {[%emt 0:04:31]} 29. Rf2 {[%emt 0:05:17]} bxa3 {[%emt 0:01:10]} 30. Bd4 {[%emt 0:03:03]} Bc8 {[%emt 0:06:13]} 31. e4 {[%emt 0:04:33]} Nxd4 {[%emt 0:01:33]} 32. Nxd4 {[%emt 0:00:57]} Qxg3 {[%emt 0:01:55]} 33. Rh2 {[%emt 0:08:20]} Bxd4 {[%emt 0:01:09]} 34. exd5 {[%emt 0:00:11]} Bf5 {[%emt 0:00:12]} 0-1

[Event "Dutch Open-ch 2019"]
[Site "Dieren"]
[Date "2019.07.24"]
[Round "2.7"]
[White "Schoppen, Casper"]
[Black "Kolbus, Dietmar"]
[Result "1/2-1/2"]
[ECO "B13"]
[WhiteElo "2493"]
[BlackElo "2281"]
[Annotator "ChessBase"]
[PlyCount "68"]
[EventDate "2019.07.23"]
[EventType "swiss"]
[EventCountry "NED"]
[SourceTitle "playchess.com"]
[Source "ChessBase"]
[SourceQuality "1"]
[TimeControl "40/5400+30:1800+30"]

1. e4 {[%emt 0:00:00]} c6 {[%emt 0:00:00]} 2. d4 {[%emt 0:00:01]} d5 {[%emt 0:00:00]} 3. exd5 {[%emt 0:00:26]} cxd5 {[%emt 0:00:00]} 4. Bd3 {[%emt 0:00:14]} Nf6 {[%emt 0:00:12]} 5. Ne2 {[%emt 0:01:11]} Nc6 {[%emt 0:00:21]} 6. c3 {[%emt 0:00:13]} g6 {[%emt 0:01:40]} 7. O-O {[%emt 0:00:20]} Bg7 {[%emt 0:00:30]} 8. Bf4 {[%emt 0:01:44]} O-O {[%emt 0:00:14]} 9. Nd2 {[%emt 0:00:16]} Re8 {[%emt 0:00:13]} 10. Re1 {[%emt 0:03:22]} e5 {[%emt 0:00:23]} 11. dxe5 {[%emt 0:00:10]} Nxe5 {[%emt 0:00:04]} 12. Bb5 {[%emt 0:00:46]} Bd7 {[%emt 0:00:29]} 13. Bxd7 {[%emt 0:05:32]} Qxd7 {[%emt 0:00:14]} 14. Qc2 {[%emt 0:00:10]} Nc4 {[%emt 0:08:05]} 15. Rad1 {[%emt 0:09:13]} Qb5 {[%emt 0:03:45]} 16. Nb3 {[%emt 0:01:25]} Qa4 {[%emt 0:01:47]} 17. Qb1 {[%emt 0:02:35]} h6 {[%emt 0:04:44]} 18. Ned4 {[%emt 0:09:26]} b6 {[%emt 0:02:47]} 19. Nd2 {[%emt 0:05:53]} Nh5 {[%emt 0:18:00]} 20. Nxc4 {[%emt 0:01:27]} dxc4 {[%emt 0:00:45]} 21. Be3 {[%emt 0:00:30]} Nf6 {[%emt 0:01:15]} 22. b3 {[%emt 0:06:45]} Qa6 {[%emt 0:00:38]} 23. bxc4 {[%emt 0:00:08]} Qxc4 {[%emt 0:00:19]} 24. Nb5 {[%emt 0:01:13]} Re5 {[%emt 0:02:16]} 25. Nd6 {[%emt 0:02:12]} Qe6 {[%emt 0:03:06]} 26. Bf4 {[%emt 0:02:25]} Rxe1+ {[%emt 0:00:30]} 27. Rxe1 {[%emt 0:00:05]} Qd7 {[%emt 0:00:10]} 28. Be5 {[%emt 0:05:19]} Rd8 {[%emt 0:03:12]} 29. c4 {[%emt 0:02:18]} Qc6 {[%emt 0:02:03]} 30. Rd1 {[%emt 0:03:13]} Bf8 {[%emt 0:04:32]} 31. Bxf6 {[%emt 0:06:52]} Rxd6 {[%emt 0:00:09]} 32. Rxd6 {[%emt 0:00:07]} Qxd6 {[%emt 0:00:12]} 33. Bc3 {[%emt 0:02:02]} Bg7 {[%emt 0:00:31]} 34. Bxg7 {[%emt 0:00:16]} Kxg7 {[%emt 0:00:06]} 1/2-1/2

[Event "Dutch Open-ch 2019"]
[Site "Dieren"]
[Date "2019.07.24"]
[Round "2.8"]
[White "Wedda, Dries"]
[Black "Vrolijk, Liam"]
[Result "0-1"]
[ECO "D85"]
[WhiteElo "2234"]
[BlackElo "2478"]
[Annotator "RC"]
[PlyCount "84"]
[EventDate "2019.07.23"]
[EventType "swiss"]
[EventCountry "NED"]
[SourceTitle "playchess.com"]
[Source "ChessBase"]
[SourceQuality "1"]
[TimeControl "40/5400+30:1800+30"]

1. d4 {[%emt 0:00:00]} Nf6 {[%emt 0:00:00]} 2. c4 {[%emt 0:00:00]} g6 {[%emt 0:00:00]} 3. Nc3 {[%emt 0:00:00]} d5 {[%emt 0:00:00]} 4. cxd5 {[%emt 0:00:28]} Nxd5 {[%emt 0:00:01]} 5. e4 {[%emt 0:00:03]} Nxc3 {[%emt 0:00:09]} 6. bxc3 {[%emt 0:00:01]} Bg7 {[%emt 0:00:10]} 7. Bb5+ {[%emt 0:00:33]} c6 {[%emt 0:04:19]} 8. Ba4 {[%emt 0:01:31]} O-O {[%emt 0:00:49]} 9. Nf3 {[%emt 0:00:29]} b5 {[%emt 0:02:32]} 10. Bb3 {[%emt 0:00:33]} a5 {[%emt 0:02:18]} 11. O-O {[%emt 0:05:05]} Na6 {[%emt 0:12:12]} 12. Be3 {[%emt 0:10:33]} a4 {[%emt 0:06:51]} 13. Bc2 {[%emt 0:00:06]} c5 {[%emt 0:05:53]} 14. Qd2 {[%emt 0:08:28]} Bg4 {[%emt 0:02:08]} 15. Rad1 {[%emt 0:29:43]} Qa5 {[%emt 0:03:26]} 16. h3 {[%emt 0:05:31]} Bxf3 {[%emt 0:02:55]} 17. gxf3 {[%emt 0:00:01]} Rfd8 {[%emt 0:04:49]} 18. f4 {[%emt 0:01:55]} b4 {[%emt 0:09:07]} 19. cxb4 {[%emt 0:01:03]} Nxb4 {[%emt 0:01:11]} 20. e5 {[%emt 0:12:49]} cxd4 {[%emt 0:14:05]} 21. Bxd4 {[%emt 0:01:41]} Nxa2 {[%emt 0:12:42]} 22. Qxa5 {[%emt 0:07:28]} Rxa5 {[%emt 0:00:14]} 23. Bb6 {[%emt 0:01:04]} Rxd1 {[%emt 0:00:08]} 24. Bxa5 {[%emt 0:01:53]} Rd5 {[%emt 0:00:58]} 25. Bb6 {[%emt 0:04:49]} Nc3 {[%emt 0:01:34]} 26. Be3 {[%emt 0:02:18]} g5 {[%emt 0:02:27]} 27. fxg5 {[%emt 0:00:58]} Bxe5 {[%emt 0:00:06]} 28. Kg2 {[%emt 0:00:15]} a3 {[%emt 0:02:25]} 29. f4 {[%emt 0:01:37]} Bd4 {[%emt 0:02:15]} 30. Kf3 {[%emt 0:00:14]} a2 {[%emt 0:01:34]} 31. Ra1 {[%emt 0:01:46]} Bxe3 {[%emt 0:00:39]} 32. Kxe3 {[%emt 0:00:01]} Rb5 {[%emt 0:00:35]} 33. Kd3 {[%emt 0:01:36]} Nd5 {[%emt 0:01:09]} 34. Kc4 {[%emt 0:01:35]} Ra5 {[%emt 0:00:33]} 35. h4 {[%emt 0:00:38]} Ne3+ {[%emt 0:01:18]} 36. Kd3 {[%emt 0:00:11]} Ra3+ {[%emt 0:00:25]} 37. Kd2 {[%emt 0:00:12]} Nxc2 {[%emt 0:02:28]} 38. Kxc2 {[%emt 0:00:01]} Ra4 {[%emt 0:00:10]} 39. h5 {[%emt 0:01:47]} Rxf4 {[%emt 0:00:12]} 40. Kd3 {[%emt 0:00:26]} Rg4 {[%emt 0:00:56]} 41. Rxa2 {[%emt 0:30:20]} Rxg5 {[%emt 0:30:13]} 42. h6 {[%emt 0:00:04]} f6 {[%emt 0:00:07]} 0-1

[Event "Dutch Open-ch 2019"]
[Site "Dieren"]
[Date "2019.07.24"]
[Round "2.9"]
[White "Hausrath, Daniel"]
[Black "Mesman, Edwyn"]
[Result "1-0"]
[ECO "A30"]
[WhiteElo "2468"]
[BlackElo "2204"]
[Annotator "ChessBase"]
[PlyCount "47"]
[EventDate "2019.07.23"]
[EventType "swiss"]
[EventCountry "NED"]
[SourceTitle "playchess.com"]
[Source "ChessBase"]
[SourceQuality "1"]
[TimeControl "40/5400+30:1800+30"]

1. Nf3 {[%emt 0:00:00]} Nf6 {[%emt 0:06:51]} 2. b3 {[%emt 0:00:00]} g6 {[%emt 0:01:52]} 3. Bb2 {[%emt 0:00:00]} Bg7 {[%emt 0:00:08]} 4. c4 {[%emt 0:02:01]} c5 {[%emt 0:00:53]} 5. g3 {[%emt 0:03:40]} b6 {[%emt 0:01:02]} 6. Bg2 {[%emt 0:00:07]} Bb7 {[%emt 0:00:10]} 7. O-O {[%emt 0:00:13]} O-O {[%emt 0:00:25]} 8. Nc3 {[%emt 0:00:04]} Nc6 {[%emt 0:02:27]} 9. d4 {[%emt 0:01:54]} d6 {[%emt 0:18:08]} 10. d5 {[%emt 0:04:08]} Na5 {[%emt 0:00:38]} 11. Qc2 {[%emt 0:02:28]} a6 {[%emt 0:04:16]} 12. a4 {[%emt 0:06:12]} b5 {[%emt 0:22:39]} 13. axb5 {[%emt 0:01:40]} axb5 {[%emt 0:00:08]} 14. Nxb5 {[%emt 0:00:12]} Qb6 {[%emt 0:00:07]} 15. e4 {[%emt 0:09:28]} Ba6 {[%emt 0:03:25]} 16. Ra4 {[%emt 0:06:12]} Bxb5 {[%emt 0:18:29]} 17. cxb5 {[%emt 0:00:47]} Ra7 {[%emt 0:00:08]} 18. Rfa1 {[%emt 0:01:18]} Qxb5 {[%emt 0:04:07]} 19. Nd2 {[%emt 0:02:09]} Rb8 {[%emt 0:06:29]} 20. Bc3 {[%emt 0:02:19]} Rba8 {[%emt 0:01:25]} 21. Bf1 {[%emt 0:04:33]} Qb6 {[%emt 0:00:21]} 22. Rxa5 {[%emt 0:00:20]} Rxa5 {[%emt 0:00:16]} 23. Rxa5 {[%emt 0:00:05]} Rxa5 {[%emt 0:00:04]} 24. Nc4 {[%emt 0:00:06]} 1-0

[Event "Dutch Open-ch 2019"]
[Site "Dieren"]
[Date "2019.07.24"]
[Round "2.10"]
[White "Van Helvoort, Rob"]
[Black "Lai, Hing Ting"]
[Result "0-1"]
[ECO "D94"]
[WhiteElo "2104"]
[BlackElo "2460"]
[Annotator "ChessBase"]
[PlyCount "66"]
[EventDate "2019.07.23"]
[EventType "swiss"]
[EventCountry "NED"]
[SourceTitle "playchess.com"]
[Source "ChessBase"]
[SourceQuality "1"]
[TimeControl "40/5400+30:1800+30"]

1. e4 {[%emt 0:00:00]} c6 {[%emt 0:00:00]} 2. c4 {[%emt 0:00:00]} d5 {[%emt 0:00:00]} 3. exd5 {[%emt 0:00:00]} cxd5 {[%emt 0:00:04]} 4. cxd5 {[%emt 0:00:00]} Nf6 {[%emt 0:00:05]} 5. Nc3 {[%emt 0:00:00]} Nxd5 {[%emt 0:00:06]} 6. Nf3 {[%emt 0:00:02]} Nc6 {[%emt 0:00:32]} 7. Bc4 {[%emt 0:01:28]} Nb6 {[%emt 0:00:22]} 8. Bb3 {[%emt 0:00:12]} g6 {[%emt 0:02:19]} 9. d4 {[%emt 0:01:15]} Bg7 {[%emt 0:00:31]} 10. d5 {[%emt 0:07:46]} Na5 {[%emt 0:00:51]} 11. O-O {[%emt 0:02:07]} O-O {[%emt 0:02:20]} 12. Re1 {[%emt 0:01:37]} Nxb3 {[%emt 0:03:37]} 13. axb3 {[%emt 0:01:17]} e6 {[%emt 0:11:54]} 14. d6 {[%emt 0:05:14]} Bd7 {[%emt 0:03:36]} 15. Ne5 {[%emt 0:15:23]} Nc8 {[%emt 0:03:09]} 16. Bf4 {[%emt 0:09:09]} f6 {[%emt 0:01:42]} 17. Nc4 {[%emt 0:00:41]} Rf7 {[%emt 0:00:36]} 18. Re2 {[%emt 0:12:21]} Bf8 {[%emt 0:05:55]} 19. Rd2 {[%emt 0:01:17]} Rb8 {[%emt 0:02:08]} 20. Ne4 {[%emt 0:07:48]} b6 {[%emt 0:00:39]} 21. f3 {[%emt 0:03:05]} Rb7 {[%emt 0:01:12]} 22. g4 {[%emt 0:01:14]} h6 {[%emt 0:02:38]} 23. Ng3 {[%emt 0:05:20]} Bc6 {[%emt 0:11:20]} 24. Rc1 {[%emt 0:03:57]} Rbd7 {[%emt 0:02:08]} 25. Be3 {[%emt 0:02:37]} Bd5 {[%emt 0:02:08]} 26. Qc2 {[%emt 0:03:28]} Bxf3 {[%emt 0:01:25]} 27. Qxg6+ {[%emt 0:00:31]} Rg7 {[%emt 0:00:05]} 28. Qxh6 {[%emt 0:00:17]} Rxg4 {[%emt 0:00:23]} 29. Qh3 {[%emt 0:00:18]} Rh7 {[%emt 0:00:21]} 30. Qf1 {[%emt 0:00:28]} Rxg3+ {[%emt 0:00:19]} 31. hxg3 {[%emt 0:00:05]} Rh1+ {[%emt 0:00:05]} 32. Kf2 {[%emt 0:00:09]} Rxf1+ {[%emt 0:00:02]} 33. Rxf1 {[%emt 0:00:06]} Bd5 {[%emt 0:00:12]} 0-1

[Event "Dutch Open-ch 2019"]
[Site "Dieren"]
[Date "2019.07.24"]
[Round "2.11"]
[White "Nair, Sanjeev"]
[Black "Das, Arghyadip"]
[Result "0-1"]
[ECO "B40"]
[WhiteElo "2045"]
[BlackElo "2439"]
[Annotator "NA"]
[PlyCount "70"]
[EventDate "2019.07.23"]
[EventType "swiss"]
[EventCountry "NED"]
[SourceTitle "playchess.com"]
[Source "ChessBase"]
[SourceQuality "1"]
[TimeControl "40/5400+30:1800+30"]

1. e4 {[%emt 0:00:00]} c5 {[%emt 0:00:00]} 2. Nf3 {[%emt 0:00:01]} e6 {[%emt 0:00:00]} 3. d4 {[%emt 0:00:08]} cxd4 {[%emt 0:00:02]} 4. Nxd4 {[%emt 0:00:06]} Qb6 {[%emt 0:00:12]} 5. Nc3 {[%emt 0:01:45]} a6 {[%emt 0:00:27]} 6. g3 {[%emt 0:05:55]} Bc5 {[%emt 0:08:58]} 7. Na4 {[%emt 0:04:27]} Qa5+ {[%emt 0:00:16]} 8. c3 {[%emt 0:00:05]} Ba7 {[%emt 0:02:30]} 9. b4 {[%emt 0:06:42]} Qc7 {[%emt 0:01:18]} 10. Qd3 {[%emt 0:04:28]} d6 {[%emt 0:08:52]} 11. Bg2 {[%emt 0:02:22]} Nd7 {[%emt 0:00:29]} 12. O-O {[%emt 0:09:26]} Ne5 {[%emt 0:01:56]} 13. Qe3 {[%emt 0:00:56]} Nf6 {[%emt 0:06:35]} 14. b5 {[%emt 0:06:06]} Qa5 {[%emt 0:07:44]} 15. Nb2 {[%emt 0:12:27]} axb5 {[%emt 0:01:41]} 16. a4 {[%emt 0:02:54]} Bd7 {[%emt 0:10:10]} 17. Bd2 {[%emt 0:07:43]} bxa4 {[%emt 0:02:09]} 18. Qg5 {[%emt 0:10:57]} O-O {[%emt 0:06:16]} 19. c4 {[%emt 0:03:55]} Qc7 {[%emt 0:02:52]} 20. Nb5 {[%emt 0:00:59]} Bxb5 {[%emt 0:00:07]} 21. cxb5 {[%emt 0:00:07]} h6 {[%emt 0:06:29]} 22. Qf4 {[%emt 0:00:43]} Qc2 {[%emt 0:01:14]} 23. Nxa4 {[%emt 0:05:13]} Nd3 {[%emt 0:03:55]} 24. Qf3 {[%emt 0:02:19]} Qxd2 {[%emt 0:02:07]} 25. Rad1 {[%emt 0:06:16]} Qb4 {[%emt 0:00:54]} 26. Qxd3 {[%emt 0:00:43]} Qxa4 {[%emt 0:00:22]} 27. e5 {[%emt 0:00:38]} dxe5 {[%emt 0:02:42]} 28. Bxb7 {[%emt 0:00:24]} Rab8 {[%emt 0:00:07]} 29. Bc6 {[%emt 0:03:43]} Bd4 {[%emt 0:00:09]} 30. Rc1 {[%emt 0:00:32]} Qa5 {[%emt 0:04:57]} 31. Kh1 {[%emt 0:01:39]} Nd5 {[%emt 0:20:00]} 32. f4 {[%emt 0:00:11]} Nb4 {[%emt 0:00:00]} 33. Qc4 {[%emt 0:00:56]} Nxc6 {[%emt 0:00:00]} 34. bxc6 {[%emt 0:00:05]} Rb4 {[%emt 0:00:00]} 35. Qe2 {[%emt 0:02:02]} Rb2 {[%emt 0:00:00]} 0-1

[Event "Dutch Open-ch 2019"]
[Site "Dieren"]
[Date "2019.07.24"]
[Round "2.12"]
[White "Lahaye, Rick"]
[Black "Shakhverdian, William"]
[Result "1-0"]
[ECO "A07"]
[WhiteElo "2421"]
[BlackElo "2001"]
[Annotator "NA"]
[PlyCount "71"]
[EventDate "2019.07.23"]
[EventType "swiss"]
[EventCountry "NED"]
[SourceTitle "playchess.com"]
[Source "ChessBase"]
[SourceQuality "1"]
[TimeControl "40/5400+30:1800+30"]

1. Nf3 {[%emt 1:30:30]} d5 {[%emt 0:00:13]} 2. b3 {[%emt 0:00:00]} Nf6 {[%emt 0:03:09]} 3. Bb2 {[%emt 0:00:00]} Bf5 {[%emt 0:02:01]} 4. d3 {[%emt 0:00:00]} h6 {[%emt 0:03:55]} 5. Nbd2 {[%emt 0:00:00]} e6 {[%emt 0:00:58]} 6. g3 {[%emt 0:00:00]} Be7 {[%emt 0:01:57]} 7. Bg2 {[%emt 0:00:00]} O-O {[%emt 0:00:33]} 8. O-O {[%emt 0:00:00]} a5 {[%emt 0:00:10]} 9. a4 {[%emt 0:00:00]} Re8 {[%emt 0:07:37]} 10. Nd4 {[%emt 0:00:00]} Bh7 {[%emt 0:01:33]} 11. e4 {[%emt 0:00:00]} dxe4 {[%emt 0:04:07]} 12. dxe4 {[%emt 0:00:00]} Bc5 {[%emt 0:00:57]} 13. Nb5 $11 {[%emt 0:00:00]} c6 {[%emt 0:08:00]} 14. e5 {[%emt 0:00:00]} Nd5 {[%emt 0:00:08]} 15. Na3 {[%emt 0:00:00]} Nd7 {[%emt 0:07:34]} 16. Nac4 {[%emt 0:00:00]} Qc7 {[%emt 0:02:49]} 17. Ne4 {[%emt 0:00:00]} Bxe4 {[%emt 0:05:21]} 18. Bxe4 {[%emt 0:00:00]} Red8 {[%emt 0:06:08]} 19. Qg4 {[%emt 0:00:00]} Nf8 {[%emt 0:02:49]} 20. Rad1 {[%emt 0:00:00]} g6 {[%emt 0:00:20]} 21. Qf3 {[%emt 0:00:00]} b5 {[%emt 0:05:31]} 22. axb5 {[%emt 0:00:00]} cxb5 {[%emt 0:00:07]} 23. Nd6 {[%emt 0:00:00]} b4 {[%emt 0:06:37]} 24. Rxd5 {[%emt 0:00:00]} exd5 {[%emt 0:00:08]} 25. Bxd5 {[%emt 0:00:00]} Ra7 {[%emt 0:03:05]} 26. Nxf7 {[%emt 0:02:11]} Rxd5 {[%emt 0:04:28]} 27. Qxd5 {[%emt 0:00:55]} Qxf7 {[%emt 0:00:26]} 28. Qxc5 {[%emt 0:00:04]} Ne6 {[%emt 0:00:56]} 29. Qe3 {[%emt 0:00:32]} Rc7 {[%emt 0:01:06]} 30. c4 {[%emt 0:01:42]} bxc3 {[%emt 0:02:08]} 31. Bxc3 {[%emt 0:00:05]} Ng5 {[%emt 0:03:37]} 32. e6 {[%emt 0:00:09]} Qf5 {[%emt 0:02:31]} 33. e7 {[%emt 0:02:59]} Nh3+ {[%emt 0:00:47]} 34. Kg2 {[%emt 0:00:04]} Rxe7 {[%emt 0:01:31]} 35. Qxe7 {[%emt 0:00:15]} Nf4+ {[%emt 0:00:06]} 36. Kh1 {[%emt 0:00:05]} 1-0

[Event "Dutch Open-ch 2019"]
[Site "Dieren"]
[Date "2019.07.24"]
[Round "2.14"]
[White "Buckels, Valentin"]
[Black "Reichardt, Robin"]
[Result "1-0"]
[ECO "D51"]
[WhiteElo "2451"]
[BlackElo "1811"]
[Annotator "ChessBase"]
[PlyCount "75"]
[EventDate "2019.07.23"]
[EventType "swiss"]
[EventCountry "NED"]
[SourceTitle "playchess.com"]
[Source "ChessBase"]
[SourceQuality "1"]
[TimeControl "40/5400+30:1800+30"]

1. d4 {[%emt 0:00:00]} d5 {[%emt 0:00:00]} 2. c4 {[%emt 0:00:00]} c6 {[%emt 0:00:00]} 3. Nf3 {[%emt 0:00:00]} Nf6 {[%emt 0:00:10]} 4. Qb3 {[%emt 0:00:08]} e6 {[%emt 0:12:11]} 5. Bg5 {[%emt 0:01:52]} Be7 {[%emt 0:02:19]} 6. e3 {[%emt 0:01:16]} Nbd7 {[%emt 0:01:09]} 7. Nc3 {[%emt 0:00:50]} O-O {[%emt 0:01:19]} 8. Bd3 {[%emt 0:00:36]} b6 {[%emt 0:06:06]} 9. cxd5 {[%emt 0:03:34]} cxd5 {[%emt 0:06:18]} 10. Rc1 {[%emt 0:01:16]} Bb7 {[%emt 0:02:18]} 11. O-O {[%emt 0:00:24]} Rc8 {[%emt 0:02:41]} 12. h3 {[%emt 0:04:56]} Ne4 {[%emt 0:10:41]} 13. Bf4 {[%emt 0:02:10]} a6 {[%emt 0:10:23]} 14. Bxe4 {[%emt 0:06:01]} dxe4 {[%emt 0:00:46]} 15. Nd2 {[%emt 0:00:02]} Nf6 {[%emt 0:01:07]} 16. Be5 {[%emt 0:01:14]} Bd5 {[%emt 0:06:13]} 17. Nxd5 {[%emt 0:12:52]} exd5 {[%emt 0:04:53]} 18. Rxc8 {[%emt 0:01:56]} Qxc8 {[%emt 0:00:06]} 19. Bxf6 {[%emt 0:00:17]} Bxf6 {[%emt 0:01:18]} 20. Qxd5 {[%emt 0:00:21]} Qc2 {[%emt 0:01:50]} 21. Nxe4 {[%emt 0:00:13]} Qxb2 {[%emt 0:00:43]} 22. Nxf6+ {[%emt 0:00:24]} gxf6 {[%emt 0:00:07]} 23. Qc6 {[%emt 0:07:34]} Qxa2 {[%emt 0:05:53]} 24. Qxb6 {[%emt 0:00:14]} Kg7 {[%emt 0:00:46]} 25. Rc1 {[%emt 0:00:36]} a5 {[%emt 0:01:17]} 26. Rc6 {[%emt 0:06:41]} a4 {[%emt 0:01:49]} 27. Rxf6 {[%emt 0:00:39]} a3 {[%emt 0:01:47]} 28. Rf5 {[%emt 0:00:51]} f6 {[%emt 0:01:53]} 29. Ra5 {[%emt 0:00:29]} Qd2 {[%emt 0:02:56]} 30. Qc7+ {[%emt 0:01:02]} Rf7 {[%emt 0:00:50]} 31. Qg3+ {[%emt 0:00:21]} Kh6 {[%emt 0:01:31]} 32. Qh4+ {[%emt 0:01:10]} Kg7 {[%emt 0:00:57]} 33. Qg4+ {[%emt 0:00:12]} Kf8 {[%emt 0:00:30]} 34. Ra8+ {[%emt 0:00:07]} Ke7 {[%emt 0:00:06]} 35. Qc8 {[%emt 0:00:17]} a2 {[%emt 0:01:58]} 36. Ra7+ {[%emt 0:00:25]} Kd6 {[%emt 0:00:11]} 37. Ra6+ {[%emt 0:00:06]} Ke7 {[%emt 0:00:14]} 38. Re6# {[%emt 0:00:37]} 1-0

[Event "Dutch Open-ch 2019"]
[Site "Dieren"]
[Date "2019.07.24"]
[Round "2.15"]
[White "Odendahl, Reiner"]
[Black "Baselmans, Sam"]
[Result "1/2-1/2"]
[ECO "A24"]
[WhiteElo "2352"]
[BlackElo "2064"]
[Annotator "NA"]
[PlyCount "61"]
[EventDate "2019.07.23"]
[EventType "swiss"]
[EventCountry "NED"]
[SourceTitle "playchess.com"]
[Source "ChessBase"]
[SourceQuality "1"]
[TimeControl "40/5400+30:1800+30"]

1. c4 {[%emt 0:00:00]} Nf6 {[%emt 0:00:00]} 2. Nc3 {[%emt 0:00:00]} g6 {[%emt 0:00:06]} 3. g3 {[%emt 0:00:47]} Bg7 {[%emt 0:00:09]} 4. Bg2 {[%emt 0:00:09]} d6 {[%emt 0:00:09]} 5. e4 {[%emt 0:00:43]} O-O {[%emt 0:00:10]} 6. Nge2 {[%emt 0:00:05]} e5 {[%emt 0:02:36]} 7. O-O {[%emt 0:00:21]} Be6 {[%emt 0:01:13]} 8. d3 {[%emt 0:02:09]} Qd7 {[%emt 0:01:43]} 9. f4 {[%emt 0:05:08]} Bh3 {[%emt 0:07:32]} 10. f5 {[%emt 0:02:14]} Bxg2 {[%emt 0:00:09]} 11. Kxg2 {[%emt 0:00:08]} c6 {[%emt 0:01:27]} 12. h3 {[%emt 0:09:56]} d5 {[%emt 0:11:43]} 13. cxd5 {[%emt 0:09:49]} cxd5 {[%emt 0:00:08]} 14. Bg5 {[%emt 0:00:07]} dxe4 {[%emt 0:07:15]} 15. dxe4 {[%emt 0:01:24]} Qxd1 {[%emt 0:03:45]} 16. Raxd1 {[%emt 0:00:21]} Nbd7 {[%emt 0:00:33]} 17. Rd6 {[%emt 0:06:35]} h6 {[%emt 0:10:27]} 18. Be3 {[%emt 0:01:36]} Rfc8 {[%emt 0:00:36]} 19. fxg6 {[%emt 0:08:04]} fxg6 {[%emt 0:00:45]} 20. g4 {[%emt 0:00:07]} b5 {[%emt 0:06:45]} 21. Ng3 {[%emt 0:08:50]} b4 {[%emt 0:04:42]} 22. Nd5 {[%emt 0:00:26]} Rc2+ {[%emt 0:00:40]} 23. Rf2 {[%emt 0:01:30]} Rxf2+ {[%emt 0:03:24]} 24. Bxf2 {[%emt 0:03:50]} a5 {[%emt 0:05:55]} 25. Nxf6+ {[%emt 0:13:51]} Nxf6 {[%emt 0:00:10]} 26. Bb6 {[%emt 0:00:07]} Kf7 {[%emt 0:01:57]} 27. Bd8 {[%emt 0:02:33]} Rc8 {[%emt 0:01:42]} 28. Rd2 {[%emt 0:04:36]} a4 {[%emt 0:00:07]} 29. Kf3 {[%emt 0:01:07]} Rc4 {[%emt 0:02:40]} 30. h4 {[%emt 0:02:34]} a3 {[%emt 0:02:04]} 31. Bxf6 {[%emt 0:02:07]} 1/2-1/2

[Event "Dutch Open-ch 2019"]
[Site "Dieren"]
[Date "2019.07.24"]
[Round "2.16"]
[White "Sharma, Dinesh K."]
[Black "Tiwari, Ashwani"]
[Result "1/2-1/2"]
[ECO "B37"]
[WhiteElo "2299"]
[BlackElo "2089"]
[Annotator "NA"]
[PlyCount "34"]
[EventDate "2019.07.23"]
[EventType "swiss"]
[EventCountry "NED"]
[SourceTitle "playchess.com"]
[Source "ChessBase"]
[SourceQuality "1"]
[TimeControl "40/5400+30:1800+30"]

1. e4 {[%emt 0:00:39]} c5 {[%emt 0:00:00]} 2. Nf3 {[%emt 0:00:05]} Nc6 {[%emt 0:00:18]} 3. d4 {[%emt 0:00:09]} cxd4 {[%emt 0:00:11]} 4. Nxd4 {[%emt 0:00:07]} g6 {[%emt 0:00:10]} 5. c4 {[%emt 0:00:06]} Nf6 {[%emt 0:00:40]} 6. Nc3 {[%emt 0:00:10]} d6 {[%emt 0:00:11]} 7. Nc2 {[%emt 0:04:08]} Bg7 {[%emt 0:01:25]} 8. Be2 {[%emt 0:00:10]} O-O {[%emt 0:03:00]} 9. O-O {[%emt 0:00:05]} Be6 {[%emt 0:03:51]} 10. Rb1 {[%emt 0:01:21]} a5 {[%emt 0:01:29]} 11. b3 {[%emt 0:07:10]} Nd7 {[%emt 0:01:57]} 12. Bb2 {[%emt 0:07:33]} Nc5 {[%emt 0:07:26]} 13. Qd2 {[%emt 0:02:42]} f5 {[%emt 0:02:41]} 14. exf5 {[%emt 0:07:22]} Bxf5 {[%emt 0:02:58]} 15. Rbd1 {[%emt 0:01:04]} a4 {[%emt 0:27:07]} 16. bxa4 {[%emt 0:03:57]} Bxc2 {[%emt 0:11:45]} 17. Qxc2 {[%emt 0:00:27]} Nd4 {[%emt 0:00:08]} 1/2-1/2